fUSD/lending_fUSD_20250212
["ID","MTS","AMOUNT","RATE_DAILY","PERIOD"]
[352830793,1739353848914,-500.0,0.00016438,2]
[352830808,1739353849078,-500.0,0.00016438,2]
[352830810,1739353849091,-500.0,0.00016438,2]
[352830812,1739353849103,-500.0,0.00016438,2]
[352830814,1739353849114,-500.0,0.00016438,2]
[352830817,1739353849126,-500.0,0.00016438,2]
[352830819,1739353849137,-500.0,0.00016438,2]
[352830821,1739353849147,-500.0,0.00016438,2]
[352830823,1739353849159,-500.0,0.00016438,2]
[352830825,1739353849170,-501.95733139,0.00016438,2]
[352830827,1739353849181,-500.0,0.00016438,2]
[352830829,1739353849191,-500.0,0.00016438,2]
[352830831,1739353849202,-500.0,0.00016438,2]
[352830833,1739353849212,-500.0,0.00016438,2]
[352830835,1739353849222,-500.0,0.00016438,2]
[352830837,1739353849233,-500.0,0.00016438,2]
[352830839,1739353849242,-500.0,0.00016438,2]
[352830840,1739353849252,-500.0,0.00016438,2]
[352830841,1739353849263,-501.29032973,0.00016438,2]
[352830842,1739353849274,-500.0,0.00016438,2]
[352830843,1739353849285,-500.0,0.00016438,2]
[352830844,1739353849297,-500.0,0.00016438,2]
[352830845,1739353849310,-500.0,0.00016438,2]
[352830846,1739353849326,-500.0,0.00016438,2]
[352830847,1739353849338,-500.0,0.00016438,2]
[352830849,1739353849351,-500.0,0.00016438,2]
[352830851,1739353849363,-500.0,0.00016438,2]
[352830853,1739353849375,-500.0,0.00016438,2]
[352830855,1739353849386,-500.0,0.00016438,2]
[352830857,1739353849398,-500.0,0.00016438,2]
[352830859,1739353849408,-508.9203104,0.00016438,2]
[352830861,1739353849419,-500.0,0.00016438,2]
[352830863,1739353849430,-500.0,0.00016438,2]
[352830865,1739353849441,-500.0,0.00016438,2]
[352830867,1739353849453,-500.0,0.00016438,2]
[352830869,1739353849464,-500.0,0.00016438,2]
[352830871,1739353849475,-500.0,0.00016438,2]
[352830873,1739353849486,-500.0,0.00016438,2]
[352830875,1739353849496,-500.0,0.00016438,2]
[352830878,1739353849507,-500.0,0.00016438,2]
[352830880,1739353849518,-500.0,0.00016438,2]
[352830882,1739353849529,-500.0,0.00016438,2]
[352830884,1739353849539,-500.0,0.00016438,2]
[352830886,1739353849550,-501.03911908,0.00016438,2]
[352830887,1739353849561,-500.0,0.00016438,2]
[352830889,1739353849571,-500.0,0.00016438,2]
[352830891,1739353849583,-503.93996031,0.00016438,2]
[352830894,1739353849593,-500.0,0.00016438,2]
[352830896,1739353849603,-500.0,0.00016438,2]
[352830898,1739353849613,-500.0,0.00016438,2]
[352830900,1739353849627,-500.0,0.00016438,2]
[352830902,1739353849637,-500.0,0.00016438,2]
[352830904,1739353849647,-500.0,0.00016438,2]
[352830906,1739353849657,-500.0,0.00016438,2]
[352830908,1739353849667,-500.0,0.00016438,2]
[352830910,1739353849678,-500.0,0.00016438,2]
[352830912,1739353849688,-500.0,0.00016438,2]
[352830913,1739353849699,-500.59370692,0.00016438,2]
[352830916,1739353849709,-500.0,0.00016438,2]
[352830917,1739353849719,-500.0,0.00016438,2]
[352830920,1739353849729,-500.0,0.00016438,2]
[352830922,1739353849739,-500.0,0.00016438,2]
[352830923,1739353849748,-417.20664926,0.00016438,2]
[352830926,1739353849759,-500.0,0.00016438,2]
[352830928,1739353849769,-500.0,0.00016438,2]
[352830930,1739353849779,-501.23348825,0.00016438,2]
[352830932,1739353849788,-504.81013118,0.00016438,2]
[352830934,1739353849799,-500.0,0.00016438,2]
[352830936,1739353849808,-500.0,0.00016438,2]
[352830938,1739353849819,-500.0,0.00016438,2]
[352830940,1739353849828,-500.91820359,0.00016438,2]
[352830942,1739353849838,-500.0,0.00016438,2]
[352830944,1739353849848,-500.0,0.00016438,2]
[352830945,1739353849859,-501.40429204,0.00016438,2]
[352830946,1739353849872,-500.0,0.00016438,2]
[352830947,1739353849882,-500.0,0.00016438,2]
[352830949,1739353849893,-500.0,0.00016438,2]
[352830951,1739353849903,-500.0,0.00016438,2]
[352830953,1739353849913,-500.0,0.00016438,2]
[352830955,1739353849923,-276.87832702,0.00016438,2]
[352830957,1739353849933,-500.0,0.00016438,2]
[352830959,1739353849943,-500.0,0.00016438,2]
[352830961,1739353849952,-503.43564824,0.00016438,2]
[352830963,1739353849963,-500.0,0.00016438,2]
[352830965,1739353849973,-500.0,0.00016438,2]
[352830967,1739353849983,-632.07,0.00016438,2]
[352830969,1739353849993,-500.0,0.00016438,2]
[352830971,1739353850003,-628.15,0.00016438,2]
[352830973,1739353850015,-501.56202024,0.00016438,2]
[352830975,1739353850025,-504.53528304,0.00016438,2]
[352830977,1739353850035,-500.0,0.00016438,2]
[352830979,1739353850045,-419.8423605,0.00016438,2]
[352830981,1739353850055,-500.0,0.00016438,2]
[352830983,1739353850066,-500.0,0.00016438,2]
[352830985,1739353850076,-500.0,0.00016438,2]
[352830987,1739353850086,-500.0,0.00016438,2]
[352830989,1739353850096,-500.0,0.00016438,2]
[352830991,1739353850106,-500.0,0.00016438,2]
[352830993,1739353850116,-504.33093347,0.00016438,2]
[352830994,1739353850132,-648.8325569,0.00016438,2]
[352830995,1739353850141,-500.0,0.00016438,2]
[352830996,1739353850151,-608.92832698,0.00016438,2]
[352830997,1739353850162,-500.0,0.00016438,2]
[352830998,1739353850172,-500.0,0.00016438,2]
[352830999,1739353850183,-500.0,0.00016438,2]
[352831000,1739353850193,-500.0,0.00016438,2]
[352831001,1739353850204,-500.0,0.00016438,2]
[352831002,1739353850215,-500.0,0.00016438,2]
[352831003,1739353850225,-500.0,0.00016438,2]
[352831004,1739353850236,-504.77196668,0.00016438,2]
[352831005,1739353850247,-527.56872215,0.00016438,2]
[352831006,1739353850258,-571.09,0.00016438,2]
[352831009,1739353850269,-213.06061717,0.00016438,2]
[352831010,1739353850279,-500.0,0.00016438,2]
[352831011,1739353850289,-503.12011974,0.00016438,2]
[352831012,1739353850299,-500.0,0.00016438,2]
[352831013,1739353850314,-504.04031624,0.00016438,2]
[352831014,1739353850324,-500.0,0.00016438,2]
[352831015,1739353850334,-500.0,0.00016438,2]
[352831016,1739353850344,-500.0,0.00016438,2]
[352831017,1739353850355,-500.0,0.00016438,2]
[352831019,1739353850366,-500.0,0.00016438,2]
[352831021,1739353850378,-500.0,0.00016438,2]
[352831023,1739353850389,-500.0,0.00016438,2]
[352831025,1739353850399,-535.64716518,0.00016438,2]
[352831028,1739353850409,-500.0,0.00016438,2]
[352831030,1739353850419,-593.78765196,0.00016438,2]
[352831032,1739353850428,-503.42854629,0.00016438,2]
[352831034,1739353850438,-500.0,0.00016438,2]
[352831036,1739353850447,-500.0,0.00016438,2]
[352831038,1739353850457,-500.0,0.00016438,2]
[352831039,1739353850467,-500.0,0.00016438,2]
[352831041,1739353850477,-500.0,0.00016438,2]
[352831044,1739353850486,-510.64825431,0.00016438,2]
[352831045,1739353850496,-500.0,0.00016438,2]
[352831046,1739353850505,-500.0,0.00016438,2]
[352831047,1739353850515,-500.0,0.00016438,2]
[352831048,1739353850524,-500.0,0.00016438,2]
[352831049,1739353850533,-500.0,0.00016438,2]
[352831050,1739353850542,-500.0,0.00016438,2]
[352831051,1739353850552,-500.0,0.00016438,2]
[352831052,1739353850562,-500.0,0.00016438,2]
[352831053,1739353850572,-500.0,0.00016438,2]
[352831054,1739353850581,-500.0,0.00016438,2]
[352831055,1739353850591,-500.0,0.00016438,2]
[352831057,1739353850600,-500.0,0.00016438,2]
[352831058,1739353850610,-500.0,0.00016438,2]
[352831060,1739353850619,-500.0,0.00016438,2]
[352831063,1739353850633,-260.33735932,0.00016438,2]
[352831064,1739353850643,-508.00266864,0.00016438,2]
[352831067,1739353850654,-504.22931327,0.00016438,2]
[352831069,1739353850664,-500.0,0.00016438,2]
[352831070,1739353850673,-500.0,0.00016438,2]
[352831073,1739353850684,-586.73,0.00016438,2]
[352831075,1739353850693,-500.0,0.00016438,2]
[352831077,1739353850704,-500.0,0.00016438,2]
[352831079,1739353850714,-500.0,0.00016438,2]
[352831081,1739353850723,-500.0,0.00016438,2]
[352831083,1739353850733,-500.0,0.00016438,2]
[352831085,1739353850743,-503.12969515,0.00016438,2]
[352831087,1739353850752,-520.83,0.00016438,2]
[352831089,1739353850762,-500.0,0.00016438,2]
[352831091,1739353850772,-500.0,0.00016438,2]
[352831093,1739353850781,-500.0,0.00016438,2]
[352831095,1739353850791,-500.0,0.00016438,2]
[352831097,1739353850801,-500.0,0.00016438,2]
[352831099,1739353850811,-500.0,0.00016438,2]
[352831100,1739353850820,-502.15330345,0.00016438,2]
[352831101,1739353850830,-306.97179078,0.00016438,2]
[352831102,1739353850840,-500.0,0.00016438,2]
[352831103,1739353850849,-500.0,0.00016438,2]
[352831104,1739353850859,-632.93,0.00016438,2]
[352831105,1739353850868,-505.74387177,0.00016438,2]
[352831106,1739353850882,-500.0,0.00016438,2]
[352831107,1739353850891,-500.0,0.00016438,2]
[352831108,1739353850901,-500.0,0.00016438,2]
[352831109,1739353850911,-501.14375117,0.00016438,2]
[352831110,1739353850921,-500.0,0.00016438,2]
[352831111,1739353850931,-530.82676611,0.00016438,2]
[352831112,1739353850940,-500.0,0.00016438,2]
[352831113,1739353850950,-500.0,0.00016438,2]
[352831114,1739353850960,-500.0,0.00016438,2]
[352831115,1739353850970,-500.0,0.00016438,2]
[352831116,1739353850980,-500.0,0.00016438,2]
[352831117,1739353850989,-503.93777795,0.00016438,2]
[352831118,1739353850999,-500.0,0.00016438,2]
[352831119,1739353851008,-500.0,0.00016438,2]
[352831120,1739353851018,-500.0,0.00016438,2]
[352831121,1739353851028,-500.0,0.00016438,2]
[352831122,1739353851038,-500.0,0.00016438,2]
[352831123,1739353851048,-500.0,0.00016438,2]
[352831124,1739353851058,-497.86950681,0.00016438,2]
[352831125,1739353851068,-500.0,0.00016438,2]
[352831126,1739353851078,-500.0,0.00016438,2]
[352831127,1739353851088,-504.3442041,0.00016438,2]
[352831128,1739353851098,-500.0,0.00016438,2]
[352831129,1739353851108,-500.0,0.00016438,2]
[352831130,1739353851118,-420.26035452,0.00016438,2]
[352831131,1739353851130,-500.0,0.00016438,2]
[352831132,1739353851140,-504.42863156,0.00016438,2]
[352831133,1739353851150,-503.48814407,0.00016438,2]
[352831134,1739353851160,-500.0,0.00016438,2]
[352831135,1739353851170,-503.34955184,0.00016438,2]
[352831136,1739353851180,-500.0,0.00016438,2]
[352831137,1739353851190,-500.0,0.00016438,2]
[352831138,1739353851199,-500.0,0.00016438,2]
[352831139,1739353851208,-501.72375444,0.00016438,2]
[352831140,1739353851218,-500.0,0.00016438,2]
[352831141,1739353851227,-500.0,0.00016438,2]
[352831142,1739353851237,-500.0,0.00016438,2]
[352831143,1739353851247,-500.0,0.00016438,2]
[352831144,1739353851257,-500.0,0.00016438,2]
[352831145,1739353851266,-500.0,0.00016438,2]
[352831146,1739353851277,-500.0,0.00016438,2]
[352831147,1739353851286,-500.0,0.00016438,2]
[352831148,1739353851296,-505.7657658,0.00016438,2]
[352831149,1739353851307,-525.31,0.00016438,2]
[352831150,1739353851319,-605.93050599,0.00016438,2]
[352831151,1739353851328,-504.31812444,0.00016438,2]
[352831152,1739353851338,-506.74592818,0.00016438,2]
[352831153,1739353851348,-500.0,0.00016438,2]
[352831154,1739353851359,-2037.7,0.00016438,2]
[352831155,1739353851369,-500.0,0.00016438,2]
[352831156,1739353851379,-501.84616084,0.00016438,2]
[352831157,1739353851390,-500.0,0.00016438,2]
[352831158,1739353851543,-561.76060394,0.00016438,2]
[352831159,1739353851553,-500.0,0.00016438,2]
[352831160,1739353851562,-503.16253624,0.00016438,2]
[352831161,1739353851572,-502.77914268,0.00016438,2]
[352831162,1739353851582,-500.0,0.00016438,2]
[352831163,1739353851592,-500.0,0.00016438,2]
[352831164,1739353851601,-506.46011198,0.00016438,2]
[352831165,1739353851611,-525.13288735,0.00016438,2]
[352831166,1739353851621,-500.0,0.00016438,2]
[352831167,1739353851632,-500.0,0.00016438,2]
[352831168,1739353851641,-504.56888039,0.00016438,2]
[352831169,1739353851651,-547.9179229,0.00016438,2]
[352831170,1739353851661,-501.97809902,0.00016438,2]
[352831171,1739353851671,-500.0,0.00016438,2]
[352831172,1739353851681,-500.0,0.00016438,2]
[352831173,1739353851691,-500.0,0.00016438,2]
[352831174,1739353851700,-502.70334224,0.00016438,2]
[352831175,1739353851710,-5037.50282148,0.00016438,2]
[352831176,1739353851719,-564.87,0.00016438,2]
[352831177,1739353851729,-500.0,0.00016438,2]
[352831178,1739353851739,-500.0,0.00016438,2]
[352831179,1739353851749,-500.0,0.00016438,2]
[352831180,1739353851758,-500.0,0.00016438,2]
[352831181,1739353851769,-500.0,0.00016438,2]
[352831182,1739353851778,-500.0,0.00016438,2]
[352831183,1739353851788,-328.95900227,0.00016438,2]
[352831184,1739353851798,-500.0,0.00016438,2]
[352831185,1739353851808,-500.0,0.00016438,2]
[352831186,1739353851817,-506.54610968,0.00016438,2]
[352831187,1739353851828,-500.0,0.00016438,2]
[352831188,1739353851838,-500.0,0.00016438,2]
[352831189,1739353851848,-500.0,0.00016438,2]
[352831190,1739353851858,-500.0,0.00016438,2]
[352831191,1739353851867,-500.0,0.00016438,2]
[352831192,1739353851878,-500.0,0.00016438,2]
[352831193,1739353851887,-500.0,0.00016438,2]
[352831194,1739353851897,-500.0,0.00016438,2]
[352831195,1739353851906,-502.05583496,0.00016438,2]
[352831196,1739353851916,-500.0,0.00016438,2]
[352831197,1739353851927,-500.0,0.00016438,2]
[352831198,1739353851936,-872.5,0.00016438,2]
[352831199,1739353851946,-500.0,0.00016438,2]
[352831200,1739353851956,-503.38529855,0.00016438,2]
[352831201,1739353851966,-500.0,0.00016438,2]
[352831202,1739353851976,-502.25240088,0.00016438,2]
[352831203,1739353851987,-500.0,0.00016438,2]
[352831204,1739353851996,-514.86116321,0.00016438,2]
[352831205,1739353852006,-506.0470922,0.00016438,2]
[352831206,1739353852016,-502.02081142,0.00016438,2]
[352831207,1739353852026,-500.0,0.00016438,2]
[352831208,1739353852035,-500.0,0.00016438,2]
[352831209,1739353852045,-500.0,0.00016438,2]
[352831210,1739353852055,-500.0,0.00016438,2]
[352831211,1739353852064,-500.0,0.00016438,2]
[352831212,1739353852074,-500.0,0.00016438,2]
[352831213,1739353852083,-500.0,0.00016438,2]
[352831214,1739353852093,-500.0,0.00016438,2]
[352831215,1739353852103,-500.0,0.00016438,2]
[352831216,1739353852112,-504.59526552,0.00016438,2]
[352831217,1739353852122,-500.0,0.00016438,2]
[352831218,1739353852132,-500.0,0.00016438,2]
[352831219,1739353852141,-500.0,0.00016438,2]
[352831220,1739353852151,-504.66888536,0.00016438,2]
[352831221,1739353852160,-503.63841868,0.00016438,2]
[352831222,1739353852170,-500.0,0.00016438,2]
[352831223,1739353852181,-504.09803162,0.00016438,2]
[352831224,1739353852190,-412.64589117,0.00016438,2]
[352831225,1739353852201,-500.0,0.00016438,2]
[352831226,1739353852211,-500.0,0.00016438,2]
[352831227,1739353852221,-500.0,0.00016438,2]
[352831228,1739353852231,-500.0,0.00016438,2]
[352831229,1739353852241,-502.91531659,0.00016438,2]
[352831230,1739353852250,-500.0,0.00016438,2]
[352831231,1739353852260,-500.0,0.00016438,2]
[352831232,1739353852270,-500.0,0.00016438,2]
[352831233,1739353852280,-503.12166533,0.00016438,2]
[352831234,1739353852290,-530.86713474,0.00016438,2]
[352831235,1739353852299,-509.11487953,0.00016438,2]
[352831236,1739353852310,-500.0,0.00016438,2]
[352831237,1739353852323,-506.93260402,0.00016438,2]
[352831238,1739353852332,-500.0,0.00016438,2]
[352831239,1739353852342,-606.21,0.00016438,2]
[352831240,1739353852353,-500.0,0.00016438,2]
[352831241,1739353852363,-500.0,0.00016438,2]
[352831242,1739353852375,-500.0,0.00016438,2]
[352831243,1739353852385,-604.18,0.00016438,2]
[352831244,1739353852398,-500.0,0.00016438,2]
[352831245,1739353852409,-501.78879494,0.00016438,2]
[352831246,1739353852418,-500.0,0.00016438,2]
[352831247,1739353852427,-567.36702837,0.00016438,2]
[352831248,1739353852437,-503.24354908,0.00016438,2]
[352831249,1739353852448,-502.33843488,0.00016438,2]
[352831250,1739353852458,-500.0,0.00016438,2]
[352831251,1739353852468,-500.0,0.00016438,2]
[352831252,1739353852477,-501.16632101,0.00016438,2]
[352831253,1739353852487,-462.38062609,0.00016438,2]
[352831254,1739353852497,-500.0,0.00016438,2]
[352831255,1739353852507,-500.0,0.00016438,2]
[352831256,1739353852517,-500.0,0.00016438,2]
[352831257,1739353852526,-607.52,0.00016438,2]
[352831258,1739353852535,-501.90756934,0.00016438,2]
[352831259,1739353852545,-500.0,0.00016438,2]
[352831260,1739353852555,-500.0,0.00016438,2]
[352831261,1739353852565,-588.36,0.00016438,2]
[352831262,1739353852574,-604.87,0.00016438,2]
[352831263,1739353852584,-500.0,0.00016438,2]
[352831264,1739353852593,-507.11680355,0.00016438,2]
[352831265,1739353852603,-500.0,0.00016438,2]
[352831266,1739353852612,-500.0,0.00016438,2]
[352831267,1739353852622,-500.0,0.00016438,2]
[352831268,1739353852633,-500.0,0.00016438,2]
[352831269,1739353852643,-502.10453514,0.00016438,2]
[352831270,1739353852653,-500.70251847,0.00016438,2]
[352831271,1739353852663,-500.0,0.00016438,2]
[352831272,1739353852673,-433.66252449,0.00016438,2]
[352831273,1739353852682,-500.0,0.00016438,2]
[352831274,1739353852692,-500.0,0.00016438,2]
[352831275,1739353852702,-500.0,0.00016438,2]
[352831276,1739353852712,-500.0,0.00016438,2]
[352831277,1739353852722,-500.0,0.00016438,2]
[352831278,1739353852732,-523.64,0.00016438,2]
[352831279,1739353852742,-500.0,0.00016438,2]
[352831280,1739353852752,-500.0,0.00016438,2]
[352831281,1739353852761,-500.0,0.00016438,2]
[352831282,1739353852771,-512.24523719,0.00016438,2]
[352831283,1739353852781,-500.0,0.00016438,2]
[352831284,1739353852790,-503.29684021,0.00016438,2]
[352831285,1739353852800,-500.0,0.00016438,2]
[352831286,1739353852810,-507.53091272,0.00016438,2]
[352831287,1739353852820,-500.0,0.00016438,2]
[352831288,1739353852830,-501.53273471,0.00016438,2]
[352831289,1739353852840,-503.91313912,0.00016438,2]
[352831290,1739353852849,-500.0,0.00016438,2]
[352831291,1739353852859,-500.0,0.00016438,2]
[352831292,1739353852869,-516.0432702,0.00016438,2]
[352831293,1739353852880,-500.0,0.00016438,2]
[352831294,1739353852891,-731.56,0.00016438,2]
[352831295,1739353852901,-500.0,0.00016438,2]
[352831296,1739353852911,-500.0,0.00016438,2]
[352831297,1739353852920,-508.85616226,0.00016438,2]
[352831298,1739353852930,-500.80138254,0.00016438,2]
[352831299,1739353852940,-500.0,0.00016438,2]
[352831300,1739353852950,-500.0,0.00016438,2]
[352831301,1739353852959,-500.0,0.00016438,2]
[352831302,1739353852969,-668.89,0.00016438,2]
[352831303,1739353852979,-500.0,0.00016438,2]
[352831304,1739353852989,-501.88506975,0.00016438,2]
[352831305,1739353852998,-508.250188,0.00016438,2]
[352831306,1739353853008,-500.0,0.00016438,2]
[352831307,1739353853019,-511.57727924,0.00016438,2]
[352831308,1739353853028,-500.0,0.00016438,2]
[352831309,1739353853038,-500.0,0.00016438,2]
[352831310,1739353853047,-500.0,0.00016438,2]
[352831311,1739353853057,-500.0,0.00016438,2]
[352831312,1739353853067,-500.0,0.00016438,2]
[352831313,1739353853076,-1419.35,0.00016438,2]
[352831314,1739353853086,-151.0,0.00016438,2]
[352831315,1739353853095,-500.0,0.00016438,2]
[352831316,1739353853105,-151.0,0.00016438,2]
[352831317,1739353853114,-501.3970683,0.00016438,2]
[352831318,1739353853125,-500.0,0.00016438,2]
[352831319,1739353853134,-500.0,0.00016438,2]
[352831320,1739353853143,-560.84063359,0.00016438,2]
[352831321,1739353853153,-500.0,0.00016438,2]
[352831322,1739353853162,-500.0,0.00016438,2]
[352831323,1739353853172,-415.64246805,0.00016438,2]
[352831324,1739353853181,-500.0,0.00016438,2]
[352831325,1739353853190,-505.70292938,0.00016438,2]
[352831326,1739353853200,-505.15475284,0.00016438,2]
[352831327,1739353853209,-511.81896915,0.00016438,2]
[352831328,1739353853218,-500.0,0.00016438,2]
[352831329,1739353853227,-417.09714724,0.00016438,2]
[352831330,1739353853237,-500.0,0.00016438,2]
[352831331,1739353853247,-500.0,0.00016438,2]
[352831332,1739353853256,-500.0,0.00016438,2]
[352831333,1739353853266,-500.0,0.00016438,2]
[352831334,1739353853276,-500.0,0.00016438,2]
[352831335,1739353853287,-500.0,0.00016438,2]
[352831336,1739353853296,-501.36937735,0.00016438,2]
[352831337,1739353853307,-500.0,0.00016438,2]
[352831338,1739353853318,-500.0,0.00016438,2]
[352831339,1739353853329,-511.32203955,0.00016438,2]
[352831340,1739353853339,-500.0,0.00016438,2]
[352831341,1739353853348,-500.0,0.00016438,2]
[352831342,1739353853358,-646.31,0.00016438,2]
[352831343,1739353853369,-500.0,0.00016438,2]
[352831344,1739353853379,-500.0,0.00016438,2]
[352831345,1739353853390,-513.32,0.00016438,2]
[352831346,1739353853400,-500.0,0.00016438,2]
[352831347,1739353853410,-500.0,0.00016438,2]
[352831348,1739353853420,-500.0,0.00016438,2]
[352831349,1739353853430,-500.0,0.00016438,2]
[352831350,1739353853440,-500.0,0.00016438,2]
[352831351,1739353853449,-500.0,0.00016438,2]
[352831352,1739353853459,-500.0,0.00016438,2]
[352831353,1739353853469,-500.0,0.00016438,2]
[352831354,1739353853479,-504.01746415,0.00016438,2]
[352831355,1739353853488,-500.0,0.00016438,2]
[352831356,1739353853499,-500.0,0.00016438,2]
[352831357,1739353853509,-500.0,0.00016438,2]
[352831358,1739353853519,-500.0,0.00016438,2]
[352831359,1739353853529,-500.0,0.00016438,2]
[352831360,1739353853538,-502.09874699,0.00016438,2]
[352831361,1739353853548,-500.0,0.00016438,2]
[352831362,1739353853559,-500.0,0.00016438,2]
[352831363,1739353853682,-512.74088686,0.00016438,2]
[352831364,1739353853705,-500.0,0.00016438,2]
[352831365,1739353853715,-500.0,0.00016438,2]
[352831366,1739353853724,-457.60756901,0.00016438,2]
[352831367,1739353853734,-500.0,0.00016438,2]
[352831368,1739353853743,-474.17012218,0.00016438,2]
[352831369,1739353853753,-827.83,0.00016438,2]
[352831370,1739353853762,-500.0,0.00016438,2]
[352831371,1739353853772,-500.0,0.00016438,2]
[352831372,1739353853782,-508.26938503,0.00016438,2]
[352831373,1739353853792,-500.0,0.00016438,2]
[352831374,1739353853802,-514.6158755,0.00016438,2]
[352831375,1739353853812,-504.60780599,0.00016438,2]
[352831376,1739353853822,-500.0,0.00016438,2]
[352831377,1739353853833,-500.0,0.00016438,2]
[352831378,1739353853843,-500.0,0.00016438,2]
[352831379,1739353853855,-500.0,0.00016438,2]
[352831380,1739353853864,-707.77,0.00016438,2]
[352831381,1739353853874,-505.60092694,0.00016438,2]
[352831382,1739353853887,-500.0,0.00016438,2]
[352831383,1739353853896,-500.0,0.00016438,2]
[352831384,1739353853905,-504.36445516,0.00016438,2]
[352831385,1739353853915,-500.0,0.00016438,2]
[352831386,1739353853924,-500.0,0.00016438,2]
[352831387,1739353853934,-500.0,0.00016438,2]
[352831388,1739353853944,-500.0,0.00016438,2]
[352831389,1739353853954,-505.61012689,0.00016438,2]
[352831390,1739353853964,-501.00636028,0.00016438,2]
[352831391,1739353853974,-500.0,0.00016438,2]
[352831392,1739353853984,-500.0,0.00016438,2]
[352831393,1739353853993,-500.0,0.00016438,2]
[352831394,1739353854003,-500.0,0.00016438,2]
[352831395,1739353854012,-500.0,0.00016438,2]
[352831396,1739353854022,-500.0,0.00016438,2]
[352831397,1739353854032,-500.0,0.00016438,2]
[352831398,1739353854041,-500.0,0.00016438,2]
[352831399,1739353854052,-500.0,0.00016438,2]
[352831400,1739353854062,-500.0,0.00016438,2]
[352831401,1739353854072,-500.0,0.00016438,2]
[352831402,1739353854082,-500.0,0.00016438,2]
[352831403,1739353854091,-500.0,0.00016438,2]
[352831404,1739353854101,-500.0,0.00016438,2]
[352831405,1739353854111,-500.0,0.00016438,2]
[352831406,1739353854120,-500.0,0.00016438,2]
[352831407,1739353854132,-500.0,0.00016438,2]
[352831408,1739353854141,-500.0,0.00016438,2]
[352831409,1739353854151,-223.02623818,0.00016438,2]
[352831410,1739353854160,-500.0,0.00016438,2]
[352831411,1739353854170,-500.0,0.00016438,2]
[352831412,1739353854179,-510.2015663,0.00016438,2]
[352831413,1739353854188,-676.72,0.00016438,2]
[352831414,1739353854198,-500.0,0.00016438,2]
[352831415,1739353854208,-500.0,0.00016438,2]
[352831416,1739353854218,-503.65545544,0.00016438,2]
[352831417,1739353854227,-500.0,0.00016438,2]
[352831418,1739353854236,-500.0,0.00016438,2]
[352831419,1739353854246,-500.0,0.00016438,2]
[352831420,1739353854256,-500.0,0.00016438,2]
[352831421,1739353854266,-500.0,0.00016438,2]
[352831422,1739353854276,-500.0,0.00016438,2]
[352831423,1739353854285,-500.0,0.00016438,2]
[352831424,1739353854295,-500.0,0.00016438,2]
[352831425,1739353854306,-208.01659584,0.00016438,2]
[352831426,1739353854318,-501.52219451,0.00016438,2]
[352831427,1739353854328,-502.51621313,0.00016438,2]
[352831428,1739353854338,-500.0,0.00016438,2]
[352831429,1739353854347,-500.0,0.00016438,2]
[352831430,1739353854357,-500.0,0.00016438,2]
[352831431,1739353854366,-509.3910956,0.00016438,2]
[352831432,1739353854375,-500.0,0.00016438,2]